bitfinex/quotes_SOLUSD_20250406
["timestamp","ask_amount","ask_price","bid_price","bid_amount"]
[1743909921774,81.07630528,119.84,119.83,6.3416]
[1743909924082,81.07630528,119.84,119.83,5.8416]
[1743909924288,81.07630528,119.84,119.83,6.3416]
[1743909924693,81.07630528,119.84,119.83,5.8416]
[1743909925289,81.07630528,119.84,119.83,6.3416]
[1743909925964,81.07630528,119.84,119.83,5.8416]
[1743909926168,81.07630528,119.84,119.83,6.3416]
[1743909926467,81.07630528,119.84,119.83,6.3716]
[1743909930989,97.62012099,119.84,119.83,0.03]
[1743909931383,16.54381571,119.84,119.83,0.03]
[1743909933896,6.28499506,119.85,119.83,0.03]
[1743909934100,16.54381571,119.84,119.83,0.03]
[1743909934598,22.82881077,119.85,119.83,0.03]
[1743909934894,6.28499506,119.85,119.83,0.03]
[1743909935292,16.54381571,119.84,119.83,0.03]
[1743909935793,16.72331268,119.84,119.83,0.03]
[1743909940297,16.78631268,119.84,119.83,0.03]
[1743909940496,195.68249697,119.84,119.83,0.03]
[1743909941002,195.68249697,119.84,119.83,5.8716]
[1743909949309,195.68249697,119.84,119.83,7.95999881]
[1743909950095,0.24249697,119.84,119.83,7.95999881]
[1743909953708,0.24249697,119.84,119.83,8.45999881]
[1743909954102,0.24249697,119.84,119.83,25.00381452]
[1743909954715,0.24249697,119.84,119.83,8.45999881]
[1743909955014,0.24249697,119.84,119.83,25.43029923]
[1743909955210,0.24249697,119.84,119.83,8.45999881]
[1743909955691,0.40020676,119.84,119.83,8.45999881]
[1743909956114,0.22070979,119.84,119.83,8.45999881]
[1743909965306,16.7645255,119.84,119.83,2.61839881]
[1743909965728,0.22070979,119.84,119.83,8.45999881]
[1743909967251,16.7645255,119.84,119.83,8.45999881]
[1743909967723,16.7645255,119.84,119.83,2.61839881]
[1743909967899,16.7645255,119.84,119.83,2.11839881]
[1743909968819,16.7645255,119.84,119.83,0.03]
[1743909970124,16.7645255,119.84,119.83,2.11862834]
[1743909971928,16.7645255,119.84,119.83,0.03]
[1743909972223,0.22070979,119.84,119.83,6.3716]
[1743909973630,0.22070979,119.84,119.83,8.45994633]
[1743909975327,0.22070979,119.84,119.83,8.45996292]
[1743909975831,0.38926556,119.84,119.83,8.45996292]
[1743909976006,0.23155577,119.84,119.83,8.45996292]
[1743909978827,0.23155577,119.84,119.83,7.95996292]
[1743909979021,0.23155577,119.84,119.83,8.45996292]
[1743909981941,5.577e-05,119.84,119.83,44.0799122]
[1743909983745,0.17379433,119.85,119.84,0.92648471]
[1743909984040,0.17379433,119.85,119.84,3.01484763]
[1743909985142,0.17379433,119.85,119.84,8.85594763]
[1743909990535,0.23679433,119.85,119.84,8.85594763]
[1743909995953,0.40810657,119.85,119.84,8.85594763]
[1743909996250,0.23431224,119.85,119.84,8.85594763]
[1743910000353,0.23431224,119.85,119.84,8.42946292]
[1743910000930,16.77812795,119.85,119.84,2.08836292]
[1743910001363,16.77812795,119.85,119.84,2.58836292]
[1743910002873,16.77812795,119.85,119.84,2.08836292]
[1743910003744,16.77812795,119.85,119.84,2.11836292]
[1743910005766,16.77812795,119.85,119.84,0.03]
[1743910010670,22.61872795,119.85,119.84,0.03]
[1743910011772,16.77812795,119.85,119.84,0.03]
[1743910012367,22.61872795,119.85,119.84,0.03]
[1743910013578,88.79399079,119.85,119.84,0.03]
[1743910013872,7.755,119.83,119.78,0.5]
[1743910014180,16.54381571,119.79,119.77,19.35241763]
[1743910014679,16.54381571,119.79,119.78,2.08914376]
[1743910015681,16.70712642,119.79,119.78,2.08914376]
[1743910016687,16.70712642,119.79,119.77,6.3442]
[1743910017665,16.54381571,119.78,119.77,0.5]
[1743910017865,16.54381571,119.78,119.77,2.58921446]
[1743910018374,16.54381571,119.78,119.77,8.43371446]
[1743910018582,16.70712642,119.79,119.78,0.5]
[1743910019465,16.70712642,119.79,119.77,2.58921446]
[1743910019666,16.70712642,119.79,119.77,0.5]
[1743910020289,16.54381571,119.78,119.77,0.5]
[1743910025996,98.34381571,119.78,119.75,0.5]
[1743910026185,16.54381571,119.76,119.74,0.5]
[1743910028795,98.34381571,119.75,119.73,0.5]
[1743910029178,81.8,119.75,119.74,0.5]
[1743910029884,81.8,119.75,119.74,0.53]
[1743910031383,98.34381571,119.75,119.74,0.53]
[1743910033003,81.8,119.75,119.74,0.53]
[1743910033203,98.34381571,119.75,119.74,0.53]
[1743910035695,98.50531453,119.75,119.74,0.53]
[1743910036292,81.96149882,119.75,119.74,0.53]
[1743910040209,98.50531453,119.75,119.74,0.53]
[1743910041412,98.50531453,119.75,119.74,0.03]
[1743910043596,16.70531453,119.75,119.74,0.03]
[1743910050213,0.16149882,119.75,119.74,0.53]
[1743910051510,0.16149882,119.75,119.74,6.3759]
[1743910052211,0.16149882,119.75,119.74,0.53]
[1743910052602,16.70531453,119.75,119.74,0.53]
[1743910055730,16.86645241,119.75,119.74,0.53]
[1743910056037,16.70495359,119.75,119.74,0.53]
[1743910057335,0.16113788,119.75,119.74,0.53]
[1743910057536,0.16113788,119.75,119.74,2.61991892]
[1743910058241,16.70495359,119.75,119.74,2.61991892]
[1743910061948,0.16113788,119.75,119.74,2.61991892]
[1743910062246,16.70495359,119.75,119.74,2.61991892]
[1743910063551,0.16113788,119.75,119.74,2.61991892]
[1743910064046,0.16113788,119.75,119.74,8.46581892]
[1743910064244,16.70495359,119.75,119.74,2.61991892]
[1743910065749,0.16113788,119.75,119.74,2.61991892]
[1743910068649,0.16113788,119.75,119.74,8.46581892]
[1743910071956,0.16113788,119.75,119.74,2.61991892]
[1743910075761,0.31645995,119.75,119.74,2.61991892]
[1743910076084,0.15532207,119.75,119.74,2.61991892]
[1743910076958,0.15532207,119.75,119.74,8.89230363]
[1743910078358,0.15532207,119.75,119.74,25.43611934]
[1743910078861,0.15532207,119.75,119.74,8.89230363]
[1743910079266,0.15532207,119.75,119.74,40.61658201]
[1743910079450,0.16028418,119.76,119.75,19.07613357]
[1743910079649,0.16028418,119.76,119.75,19.57613357]
[1743910079957,0.16028418,119.76,119.75,2.58991892]
[1743910081357,0.16028418,119.76,119.75,21.66605249]
[1743910081567,0.16028418,119.76,119.75,27.51155249]
[1743910082663,0.16028418,119.76,119.75,40.64577034]
[1743910084672,0.16028418,119.76,119.75,21.99612148]
[1743910085971,0.16028418,119.76,119.75,40.64577034]
[1743910087071,0.16028418,119.76,119.75,27.51155249]
[1743910095380,0.16028418,119.76,119.75,27.54155249]
[1743910095780,0.32932383,119.76,119.75,27.54155249]
[1743910095953,0.39232383,119.76,119.75,27.54155249]
[1743910096255,0.23203965,119.76,119.75,27.54155249]
[1743910097580,0.23203965,119.76,119.75,21.69605249]
[1743910097766,0.23203965,119.76,119.75,27.54155249]
[1743910098264,0.23203965,119.76,119.75,25.57234239]
[1743910102772,0.23203965,119.76,119.75,42.1161581]
[1743910104273,0.23203965,119.76,119.75,73.83483434]
[1743910105085,0.23203965,119.76,119.75,57.29101863]
[1743910105672,0.23203965,119.76,119.75,44.46929912]
[1743910106985,0.23203965,119.76,119.75,38.68221103]
[1743910107288,0.23203965,119.76,119.75,32.83671103]
[1743910108689,0.23203965,119.76,119.75,19.72684239]
[1743910108883,0.23203965,119.76,119.75,25.57234239]
[1743910109106,0.23203965,119.76,119.75,19.72684239]
[1743910110903,0.23203965,119.76,119.75,25.57234239]
[1743910115866,0.39634106,119.76,119.75,42.1161581]
[1743910116070,0.22730141,119.76,119.75,42.1161581]
[1743910116581,0.22730141,119.76,119.75,49.1761581]
[1743910116788,0.22730141,119.76,119.75,32.63234239]
[1743910117977,0.22730141,119.76,119.75,45.74221103]
[1743910120394,0.22730141,119.76,119.75,62.28602674]
[1743910121495,0.22730141,119.76,119.75,45.74221103]
[1743910124374,0.16074007,119.77,119.76,19.07613357]
[1743910124775,0.16074007,119.77,119.76,19.69684239]
[1743910127198,0.16074007,119.77,119.76,25.54184239]
[1743910127791,0.16074007,119.77,119.76,24.92113357]
[1743910130200,0.16074007,119.77,119.76,38.03100221]
[1743910131600,0.16074007,119.77,119.76,24.92113357]
[1743910132978,0.16074007,119.77,119.76,27.01040045]
[1743910133302,0.16074007,119.77,119.76,40.12026909]
[1743910135784,0.32181287,119.77,119.76,40.12026909]
[1743910136198,0.1610728,119.77,119.76,40.12026909]
[1743910136500,0.1610728,119.77,119.76,40.15026909]
[1743910137122,0.2240728,119.77,119.76,40.15026909]
[1743910151234,0.2240728,119.77,119.76,71.87669835]
[1743910151536,0.2240728,119.77,119.76,88.42051406]
[1743910152836,0.2240728,119.77,119.76,49.37905727]
[1743910154740,0.15619621,119.79,119.77,0.14216157]
[1743910154942,0.15619621,119.79,119.77,16.68597728]
[1743910155142,0.15619621,119.79,119.77,0.14216157]
[1743910155639,0.15619621,119.79,119.78,2.08926688]
[1743910155839,0.31546707,119.79,119.78,2.08926688]
[1743910156143,0.15927086,119.79,119.78,2.08926688]
[1743910156526,0.15927086,119.79,119.78,7.93326688]
[1743910156840,0.15927086,119.79,119.78,21.06748869]
[1743910158539,0.15927086,119.79,119.78,40.14362226]
[1743910159118,0.15927086,119.79,119.78,45.93534158]
[1743910161140,0.15927086,119.79,119.78,40.14362226]
[1743910164844,0.22227086,119.79,119.78,40.14362226]
[1743910174947,0.22227086,119.79,119.78,45.92686661]
[1743910175845,0.40437348,119.79,119.78,45.92686661]
[1743910176051,0.24510262,119.79,119.78,45.92686661]
[1743910177337,0.24510262,119.79,119.78,45.95686661]
[1743910178037,0.24510262,119.79,119.78,40.17362226]
[1743910179427,0.24510262,119.79,119.78,27.03940045]
[1743910180738,0.24510262,119.79,119.78,45.9551765]
[1743910185061,16.69660043,119.8,119.78,27.0212045]
[1743910185355,16.69660043,119.8,119.79,2.08926688]
[1743910185554,0.15278472,119.8,119.79,2.51575159]
[1743910187968,0.15278472,119.8,119.79,8.35925159]
[1743910195765,0.31938121,119.8,119.79,8.35925159]
[1743910196173,0.16659649,119.8,119.79,8.35925159]
[1743910197951,0.16659649,119.8,119.79,34.06890045]
[1743910198351,0.16659649,119.8,119.79,47.20312226]
[1743910199882,0.16659649,119.8,119.79,52.99282491]
[1743910200670,0.16659649,119.8,119.79,21.15535291]
[1743910200875,0.16659649,119.8,119.79,26.99885291]
[1743910201051,0.16659649,119.8,119.79,27.28317605]
[1743910201250,0.16659649,119.8,119.79,21.4934734]
[1743910204779,0.16659649,119.8,119.79,15.22348869]
[1743910204780,42.7104122,119.8,119.79,15.22348869]
[1743910205075,50.7008122,119.8,119.79,21.02001598]
[1743910205765,50.7008122,119.8,119.79,21.05001598]
[1743910206376,50.7008122,119.8,119.79,2.11926688]
[1743910206377,50.7638122,119.8,119.79,2.11926688]
[1743910206572,50.7638122,119.8,119.79,0.03]
[1743910215883,50.9285519,119.8,119.79,0.03]
[1743910216083,50.76195541,119.8,119.79,0.03]
[1743910216771,56.60495541,119.8,119.79,0.03]
[1743910216972,63.66495541,119.8,119.75,0.03]
[1743910217266,16.54381571,119.76,119.75,0.03]
[1743910217687,47.1211397,119.8,119.75,0.03]
[1743910217894,16.54381571,119.77,119.75,0.03]
[1743910221796,16.54381571,119.78,119.75,0.03]
[1743910224491,16.54381571,119.77,119.75,0.03]
[1743910231501,98.34381571,119.79,119.75,16.57381571]
[1743910231680,81.8,119.79,119.77,19.07613357]
[1743910232572,81.8,119.79,119.77,41.46414928]
[1743910232772,81.8,119.79,119.78,35.61994928]
[1743910232976,0.2277397,119.8,119.78,35.61994928]
[1743910233189,0.2277397,119.8,119.79,16.54381571]
[1743910233898,0.2277397,119.8,119.79,22.52947728]
[1743910235796,0.39613517,119.8,119.79,22.52947728]
[1743910236182,0.23139547,119.8,119.79,22.52947728]
[1743910248213,0.23139547,119.8,119.79,41.46344928]
[1743910255818,0.40866408,119.8,119.79,41.46344928]
[1743910256115,0.24026861,119.8,119.79,41.46344928]
[1743910258014,0.24026861,119.8,119.79,24.91963357]
[1743910258195,0.24026861,119.8,119.79,18.79181043]
[1743910258390,0.24026861,119.8,119.79,19.07613357]
[1743910258615,16.78408432,119.8,119.79,0.14216157]
[1743910259716,0.24026861,119.8,119.79,0.14216157]
[1743910263122,0.24026861,119.8,119.79,24.91963357]
[1743910263419,0.24026861,119.8,119.78,0.17216157]
[1743910263813,16.54381571,119.79,119.78,0.03]
[1743910264011,16.78408432,119.8,119.78,0.03]
[1743910266703,98.58408432,119.8,119.78,0.03]
[1743910268123,16.54381571,119.79,119.78,0.03]
[1743910271205,30.01651571,119.79,119.78,0.03]
[1743910271407,30.01651571,119.79,119.75,0.03]
[1743910271607,16.54381571,119.76,119.75,0.03]
[1743910272214,24.17301571,119.76,119.75,0.03]
[1743910275807,24.3528315,119.76,119.75,0.03]
[1743910276015,7.80901579,119.76,119.75,0.03]
[1743910276214,24.3528315,119.76,119.75,0.03]
[1743910290443,16.7236315,119.76,119.75,0.03]
[1743910290827,0.17981579,119.76,119.75,0.03]
[1743910291144,0.17981579,119.76,119.75,18.963972]
[1743910292844,0.17981579,119.76,119.75,24.809472]
[1743910293046,0.1511831,119.77,119.76,0.14216157]
[1743910294340,0.1511831,119.77,119.76,5.98716157]
[1743910295847,0.32378848,119.77,119.76,5.98716157]
[1743910296030,0.17260538,119.77,119.76,5.98716157]
[1743910297426,0.23560538,119.77,119.76,5.98716157]
[1743910300647,0.23560538,119.77,119.75,0.03]
[1743910300648,81.8,119.76,119.75,0.03]
[1743910300856,16.54381571,119.76,119.75,0.03]
[1743910301154,24.60871571,119.76,119.74,0.03]
[1743910301359,16.54381571,119.75,119.74,0.03]
[1743910301550,23.60381571,119.75,119.74,0.03]
[1743910302357,29.44931571,119.75,119.74,0.03]
[1743910304362,23.60381571,119.75,119.74,0.03]
[1743910306269,29.44931571,119.75,119.74,0.03]
[1743910306963,23.60381571,119.75,119.74,0.03]
[1743910311072,16.54381571,119.75,119.74,0.03]
[1743910311247,16.60681571,119.75,119.74,0.03]
[1743910315482,42.54381571,119.73,119.72,0.03]
[1743910316768,42.54381571,119.73,119.67,37.91729381]
[1743910316769,33.7679,119.68,119.67,13.13422181]
[1743910316971,57.37171571,119.68,119.66,26.29844362]
[1743910317163,16.54381571,119.67,119.66,26.29844362]
[1743910317556,16.54381571,119.67,119.66,0.03]
[1743910319874,26.0,119.65,119.64,26.26844362]
[1743910320077,26.0,119.65,119.64,25.76844362]
[1743910320259,42.54381571,119.65,119.6,0.14216157]
[1743910320455,16.54381571,119.61,119.6,0.14216157]
[1743910320852,16.54381571,119.61,119.58,0.14216157]
[1743910321158,16.54381571,119.59,119.57,0.14216157]
[1743910321768,66.17526284,119.63,119.57,0.14216157]
[1743910321769,16.54381571,119.58,119.57,0.14216157]
[1743910322154,26.0,119.56,119.55,25.76844362]
[1743910322370,26.0,119.58,119.55,25.76844362]
[1743910322574,16.54381571,119.57,119.55,25.76844362]
[1743910322770,16.54381571,119.56,119.55,25.76844362]
[1743910322978,16.54381571,119.56,119.54,0.14216157]
[1743910323163,16.54381571,119.55,119.54,0.14216157]
[1743910323365,18.12691571,119.55,119.47,77.79476445]
[1743910323560,16.54381571,119.5,119.47,77.79476445]
[1743910324288,81.8,119.52,119.47,77.79476445]
[1743910324289,20.92380233,119.54,119.49,57.99721421]
[1743910324585,20.92380233,119.54,119.52,19.07613357]
[1743910324760,20.92380233,119.54,119.53,47.20174928]
[1743910324960,20.92380233,119.54,119.53,46.70174928]
[1743910325678,20.92380233,119.54,119.53,56.22068778]
[1743910325879,20.92380233,119.54,119.53,30.15793357]
[1743910326375,20.92380233,119.54,119.53,36.01413357]
[1743910326581,20.92380233,119.54,119.53,62.07688778]
[1743910326969,26.06275421,119.58,119.54,0.14216157]
[1743910327167,81.8,119.59,119.54,0.14216157]
[1743910327168,26.06275421,119.57,119.54,0.14216157]
[1743910327363,26.06275421,119.57,119.54,19.07613357]
[1743910327560,26.06275421,119.56,119.54,19.07613357]
[1743910327767,26.06275421,119.56,119.54,26.27613357]
[1743910328372,26.06275421,119.57,119.54,26.27613357]
[1743910329860,26.06275421,119.57,119.54,19.07613357]
[1743910330059,26.06275421,119.56,119.54,26.27613357]
[1743910330255,81.8,119.59,119.54,26.27613357]
[1743910330460,26.06275421,119.57,119.54,26.27613357]
[1743910330977,26.06275421,119.56,119.53,19.07613357]
[1743910331184,26.06275421,119.56,119.55,0.28432314]
[1743910331679,26.06275421,119.56,119.54,7.2]
[1743910331878,26.06275421,119.56,119.55,0.14216157]
[1743910335882,26.21873592,119.56,119.55,0.14216157]
[1743910337377,26.21873592,119.56,119.55,0.17216157]
[1743910337886,26.21873592,119.56,119.55,19.10613357]
[1743910337887,0.15598171,119.56,119.55,19.10613357]
[1743910338271,0.15598171,119.56,119.55,24.96133357]
[1743910338466,0.15598171,119.56,119.55,19.10613357]
[1743910339070,0.15598171,119.56,119.55,24.96133357]
[1743910339269,0.15598171,119.56,119.55,19.10613357]
[1743910339477,26.24193874,119.58,119.56,18.933972]
[1743910339690,26.24193874,119.58,119.57,0.14216157]
[1743910340568,0.17918453,119.58,119.57,50.99318778]
[1743910346790,0.17918453,119.58,119.57,18.79181043]
[1743910346998,26.24193874,119.58,119.57,0.14216157]
[1743910352609,26.24193874,119.58,119.55,0.31432314]
[1743910352780,26.24193874,119.58,119.56,7.2]
[1743910352982,26.24193874,119.58,119.56,7.34216157]
[1743910353187,26.24193874,119.58,119.57,0.14216157]
[1743910353681,0.17918453,119.58,119.57,0.14216157]
[1743910353881,26.24193874,119.58,119.56,7.2]
[1743910354082,26.06275421,119.57,119.56,7.2]
[1743910355791,16.86499236,119.57,119.56,7.2]
[1743910356700,0.18105571,119.57,119.56,26.27613357]
[1743910356908,0.18105571,119.57,119.56,32.13093357]
[1743910360914,0.18105571,119.57,119.56,26.27613357]
[1743910362515,0.18105571,119.57,119.56,26.30613357]
[1743910364112,0.18105571,119.57,119.56,32.16093357]
[1743910375830,0.34763753,119.57,119.56,32.16093357]
[1743910376122,0.16658182,119.57,119.56,58.21676915]
[1743910376326,0.16658182,119.57,119.56,58.71676915]
[1743910377039,0.16658182,119.57,119.56,32.66093357]
[1743910377227,0.16658182,119.57,119.56,57.93244601]
[1743910377429,0.16658182,119.57,119.56,31.87661043]
[1743910377613,0.16658182,119.57,119.56,32.16093357]
[1743910378830,0.16658182,119.57,119.56,58.21676915]
[1743910379809,0.16658182,119.57,119.56,48.83203455]
[1743910380521,0.16658182,119.57,119.56,49.33203455]
[1743910380932,0.16658182,119.57,119.56,48.83203455]
[1743910381112,0.16658182,119.57,119.56,32.16093357]
[1743910381313,0.16658182,119.57,119.56,48.83203455]
[1743910382339,0.16658182,119.57,119.56,31.87661043]
[1743910382557,0.16658182,119.57,119.56,32.16093357]
[1743910383041,0.16658182,119.57,119.56,31.998772]
[1743910383233,0.16658182,119.57,119.56,32.14093357]
[1743910384031,0.16658182,119.57,119.56,48.81203455]
[1743910386036,0.2269234,119.58,119.57,19.07613357]
[1743910388632,0.2269234,119.58,119.57,24.93043357]
[1743910390227,0.2269234,119.58,119.57,41.60153455]
[1743910390426,0.2269234,119.58,119.57,48.76153455]
[1743910395839,0.39787334,119.58,119.57,48.76153455]
[1743910396021,0.23394994,119.58,119.57,48.76153455]
[1743910403552,2.543e-05,119.59,119.58,19.57613357]
[1743910403853,2.543e-05,119.59,119.58,36.24723455]
[1743910404556,6.014e-05,119.6,119.59,19.57613357]
[1743910404843,6.014e-05,119.6,119.59,36.24723455]
[1743910405946,6.014e-05,119.6,119.59,42.10053455]
[1743910406623,9.263e-05,119.61,119.6,19.57613357]
[1743910406845,9.263e-05,119.61,119.6,36.24723455]
[1743910408238,9.263e-05,119.61,119.6,42.10003455]
[1743910408859,9.263e-05,119.61,119.6,47.88150114]
[1743910410453,9.263e-05,119.61,119.6,42.10003455]
[1743910412633,1.885e-05,119.62,119.61,19.07613357]
[1743910412834,1.885e-05,119.62,119.61,43.36723455]
[1743910413961,1.885e-05,119.62,119.61,42.86723455]
[1743910414146,1.885e-05,119.62,119.61,49.21953455]
[1743910414758,1.885e-05,119.62,119.61,31.76411043]
[1743910414947,1.885e-05,119.62,119.61,48.57737298]
[1743910415147,1.885e-05,119.62,119.61,48.71953455]
[1743910415944,0.17911149,119.62,119.61,41.59953455]
[1743910416139,0.17909264,119.62,119.61,32.04843357]
[1743910416344,0.15909264,119.62,119.61,32.04843357]
[1743910417356,0.15909264,119.62,119.61,48.71953455]
[1743910418053,0.15909264,119.62,119.61,32.04843357]
[1743910418259,81.8,119.61,119.58,78.32596674]
[1743910418446,18.23650098,119.59,119.58,78.32596674]
[1743910418634,24.32450098,119.59,119.58,59.99296674]
[1743910418838,23.45590098,119.59,119.58,49.99316674]
[1743910419465,35.83240098,119.59,119.56,0.03]
[1743910419646,33.34220196,119.57,119.56,0.03]
[1743910419845,83.3555049,119.57,119.56,0.03]
[1743910420046,83.3555049,119.57,119.55,50.93864076]
[1743910420365,33.7946,119.59,119.55,50.93864076]
[1743910420366,83.3555049,119.56,119.55,50.93864076]
[1743910421057,5.8552,119.55,119.5,0.14216157]
[1743910421765,26.08542889,119.53,119.5,0.42648471]
[1743910421951,26.08542889,119.55,119.53,0.14216157]
[1743910425369,107.88542889,119.54,119.53,0.14216157]
[1743910427076,81.8,119.54,119.53,0.14216157]
[1743910428358,107.88542889,119.54,119.53,0.14216157]
[1743910429583,81.8,119.54,119.53,0.14216157]
[1743910431475,107.88542889,119.54,119.53,0.14216157]
[1743910433176,81.8,119.54,119.53,0.14216157]
[1743910435276,107.88542889,119.54,119.53,0.14216157]
[1743910435872,108.06091491,119.54,119.53,0.14216157]
[1743910437374,108.06091491,119.54,119.5,0.28432314]
[1743910437565,26.08542889,119.51,119.49,0.14216157]
[1743910437880,26.08542889,119.52,119.49,0.14216157]
[1743910438054,26.08542889,119.5,119.49,0.14216157]
[1743910439151,26.08542889,119.5,119.48,35.86091839]
[1743910439351,26.08542889,119.49,119.48,35.86091839]
[1743910439853,26.08542889,119.49,119.47,0.14216157]
[1743910440261,26.08542889,119.48,119.47,0.14216157]
[1743910440472,26.08542889,119.49,119.47,0.14216157]
[1743910441177,26.08542889,119.5,119.47,24.93523357]
[1743910442589,81.8,119.52,119.47,24.96523357]
[1743910442878,81.8,119.52,119.51,18.79181043]
[1743910443071,0.17548602,119.54,119.52,0.28432314]
[1743910443378,26.26091491,119.54,119.51,25.99181043]
[1743910443769,16.86779855,119.54,119.51,25.99181043]
[1743910443970,16.86779855,119.54,119.51,26.01181043]
[1743910444576,16.69231253,119.52,119.51,0.14216157]
[1743910445180,16.69231253,119.53,119.51,0.14216157]
[1743910451382,81.97548602,119.54,119.51,0.14216157]
[1743910451587,16.69231253,119.53,119.51,0.14216157]
[1743910454397,81.97548602,119.54,119.51,24.93323357]
[1743910454725,81.97548602,119.54,119.51,41.6255461]
[1743910455402,81.97548602,119.54,119.51,24.93323357]
[1743910455890,0.15328878,119.52,119.51,24.93323357]
[1743910461496,0.15328878,119.52,119.51,19.07613357]
[1743910461680,16.84560131,119.52,119.51,0.14216157]
[1743910470009,16.84560131,119.52,119.5,0.14216157]
[1743910470211,16.69231253,119.51,119.5,0.14216157]
[1743910471711,16.84560131,119.52,119.5,0.14216157]
[1743910471899,0.15328878,119.52,119.5,24.93363357]
[1743910475917,0.1682297,119.51,119.5,24.93363357]
[1743910481126,0.1682297,119.51,119.5,24.96363357]
[1743910487024,0.1682297,119.51,119.5,19.10613357]
[1743910490002,0.1682297,119.51,119.5,24.96383357]
[1743910490419,0.1682297,119.51,119.5,41.6561461]
[1743910490630,0.1682297,119.51,119.5,24.96383357]
[1743910491930,0.1682297,119.51,119.5,18.963972]
[1743910492426,0.1682297,119.51,119.5,19.10613357]
[1743910494430,0.1682297,119.51,119.5,24.96383357]
[1743910495945,0.35177646,119.51,119.5,24.96383357]
[1743910496236,0.18354676,119.51,119.5,24.96383357]
[1743910511253,0.18354676,119.51,119.5,24.67951043]
[1743910511554,16.87585929,119.51,119.5,0.17216157]
[1743910515653,16.87585929,119.51,119.5,0.03]
[1743910516072,16.85621255,119.51,119.5,0.03]
[1743910517070,0.16390002,119.51,119.5,0.03]
[1743910517251,16.85621255,119.51,119.5,0.03]
[1743910518176,0.16390002,119.51,119.5,18.67964886]
[1743910518348,0.16390002,119.51,119.5,18.963972]
[1743910518843,0.16390002,119.51,119.5,24.821672]
[1743910536065,0.15096131,119.51,119.5,24.821672]
[1743910537876,16.84327384,119.51,119.5,0.03]
[1743910538072,0.15096131,119.51,119.5,43.3205461]
[1743910538482,2.53e-06,119.52,119.51,19.07613357]
[1743910538687,2.53e-06,119.52,119.51,42.8684461]
[1743910540164,2.53e-06,119.52,119.51,48.7256461]
[1743910542697,0.05801966,119.55,119.54,0.14216157]
[1743910542874,0.00784429,119.58,119.57,0.14216157]
[1743910543075,7.889e-05,119.59,119.57,43.3684461]
[1743910543277,0.13369988,119.6,119.59,0.28432314]
[1743910543474,0.13369988,119.6,119.59,35.7684461]
[1743910543669,0.13369988,119.6,119.59,19.07613357]
[1743910543871,0.13369988,119.6,119.59,35.7684461]
[1743910544266,9.988e-05,119.6,119.59,35.7684461]
[1743910544479,9.988e-05,119.6,119.59,47.7123461]
[1743910544991,9.988e-05,119.6,119.59,48.2123461]
[1743910546084,9.988e-05,119.6,119.59,18.79181043]
[1743910546793,9.988e-05,119.6,119.59,19.07613357]
[1743910546974,9.988e-05,119.6,119.59,18.79181043]
[1743910547374,9.988e-05,119.6,119.59,19.07613357]
[1743910550997,9.988e-05,119.6,119.59,41.6217461]
[1743910551381,9.988e-05,119.6,119.59,24.92943357]
[1743910551790,9.988e-05,119.6,119.59,41.6217461]
[1743910552801,9.988e-05,119.6,119.59,35.7684461]
[1743910553005,9.988e-05,119.6,119.59,26.14216157]
[1743910553190,16.69241241,119.6,119.57,0.14216157]
[1743910553389,16.69231253,119.59,119.57,0.14216157]
[1743910553805,16.69241241,119.6,119.57,0.42648471]
[1743910555905,0.18141179,119.58,119.57,0.42648471]
[1743910560236,0.18141179,119.58,119.57,0.14216157]
[1743910560513,16.87372432,119.58,119.56,0.14216157]
[1743910561293,22.72762432,119.58,119.54,18.933972]
[1743910561505,22.72762432,119.58,119.55,0.14216157]
[1743910561709,16.69231253,119.57,119.55,0.14216157]
[1743910565421,0.18141179,119.58,119.55,0.14216157]
[1743910565612,16.87372432,119.58,119.55,0.14216157]
[1743910566417,16.69231253,119.57,119.55,0.14216157]
[1743910566715,16.69231253,119.57,119.52,18.30041253]
[1743910566915,16.69231253,119.56,119.53,0.14216157]
[1743910567298,16.69231253,119.55,119.53,0.14216157]
[1743910571123,16.69231253,119.55,119.53,0.17216157]
[1743910573020,16.69231253,119.55,119.53,0.03]
[1743910573933,16.69231253,119.54,119.53,0.03]
[1743910574236,16.69231253,119.55,119.53,0.03]
[1743910575924,0.17544283,119.54,119.53,0.03]
[1743910576422,16.86775536,119.54,119.5,0.03]
[1743910576622,16.69231253,119.52,119.5,0.03]
[1743910581428,81.8,119.53,119.5,19.10613357]
[1743910581621,81.8,119.53,119.5,35.7984461]
[1743910581810,81.8,119.53,119.5,42.8984461]
[1743910582011,0.17544283,119.54,119.52,0.14216157]
[1743910583115,0.17544283,119.54,119.52,5.99876157]
[1743910585930,0.17544283,119.54,119.52,6.02876157]
[1743910587645,0.17544283,119.54,119.52,0.17216157]
[1743910588116,0.17544283,119.54,119.52,0.03]
[1743910588317,16.69231253,119.53,119.52,0.03]